bitfinex/quotes_BTCUSD_20260315
["timestamp","ask_amount","ask_price","bid_price","bid_amount"]
[1773581280947,0.06874325,71520.0,71500.0,0.06920905]
[1773581282478,0.0014,71519.0,71500.0,0.06920905]
[1773581283242,0.0014,71519.0,71501.0,0.13913814]
[1773581283808,0.0014,71519.0,71501.0,0.06992909]
[1773581284026,0.0014,71519.0,71502.0,0.06920905]
[1773581284753,0.0002229,71524.0,71502.0,0.06920905]
[1773581284998,0.0014,71518.0,71502.0,0.06920905]
[1773581285198,0.0014,71518.0,71503.0,0.06992713]
[1773581285846,0.0892842,71516.0,71503.0,0.06992713]
[1773581286136,0.06874325,71515.0,71503.0,0.06992713]
[1773581286360,0.06874325,71515.0,71492.0,0.16723714]
[1773581286584,0.06874325,71515.0,71494.0,0.06993518]
[1773581287123,0.06991638,71514.0,71485.0,0.06994474]
[1773581287327,0.06874325,71513.0,71485.0,0.07005195]
[1773581287582,0.06874325,71511.0,71485.0,0.07005195]
[1773581288070,0.06874325,71511.0,71485.0,0.00010721]
[1773581289263,0.06874325,71509.0,71485.0,0.00010721]
[1773581289635,0.06874325,71509.0,71482.0,0.06994747]
[1773581289848,0.06874325,71509.0,71482.0,0.00010715]
[1773581290250,0.0014,71508.0,71481.0,0.07003247]
[1773581290463,0.06874325,71507.0,71481.0,0.07003247]
[1773581292277,0.06874325,71505.0,71481.0,8.41e-05]
[1773581293263,0.07003127,71508.0,71482.0,0.06920905]
[1773581293264,0.00010707,71508.0,71482.0,0.06920905]
[1773581293506,0.06874325,71503.0,71482.0,0.06920905]
[1773581293925,0.06874325,71503.0,71482.0,0.06940905]
[1773581294347,0.06874325,71503.0,71483.0,0.0699467]
[1773581294709,0.06874325,71503.0,71483.0,0.13915575]
[1773581296605,0.06992783,71503.0,71483.0,0.13915575]
[1773581296824,0.06874325,71502.0,71483.0,0.13915575]
[1773581297332,0.06874325,71502.0,71483.0,0.0699467]
[1773581298940,0.06874325,71501.0,71483.0,0.0699467]
[1773581300838,0.0014,71500.0,71483.0,0.0699467]
[1773581301265,0.00010707,71508.0,71483.0,0.0699467]
[1773581301473,0.0014,71507.0,71484.0,0.06920905]
[1773581301649,0.07014325,71507.0,71484.0,0.06920905]
[1773581303057,0.07014325,71507.0,71485.0,0.06994474]
[1773581303289,0.07014325,71507.0,71485.0,0.13731371]
[1773581303290,0.0699242,71506.0,71485.0,0.13731371]
[1773581303491,0.06515854,71505.0,71485.0,0.13731371]
[1773581306098,0.06515854,71505.0,71485.0,0.06994474]
[1773581306337,0.06515854,71505.0,71486.0,0.06736897]
[1773581308271,0.06515854,71505.0,71487.0,0.06994278]
[1773581309019,0.06515854,71504.0,71487.0,0.06994278]
[1773581310876,0.06515854,71502.0,71487.0,0.06994278]
[1773581311074,0.0014,71501.0,71487.0,0.06994278]
[1773581314971,0.06515854,71500.0,71487.0,0.06994278]
[1773581315148,0.06993104,71499.0,71484.0,0.06994495]
[1773581315348,0.06515854,71498.0,71483.0,0.0002]
[1773581315990,0.06515854,71498.0,71484.0,0.06994495]
[1773581316636,0.06515854,71499.0,71484.0,0.06994495]
[1773581319854,0.0014,71498.0,71484.0,0.06994495]
[1773581320054,0.06655854,71498.0,71484.0,0.06994495]
[1773581321056,0.069933,71497.0,71482.0,0.05007602]
[1773581321241,0.06515854,71496.0,71476.0,0.06995322]
[1773581323101,0.06993496,71495.0,71476.0,0.06995322]
[1773581323295,0.06515854,71494.0,71476.0,0.06995322]
[1773581325373,0.06515854,71492.0,71476.0,0.06995322]
[1773581325579,0.06655854,71491.0,71476.0,0.06995322]
[1773581325812,0.06655854,71491.0,71475.0,0.07015432]
[1773581327759,0.07133985,71490.0,71475.0,0.07015432]
[1773581327974,0.06993006,71500.0,71475.0,0.07015432]
[1773581328147,0.06655854,71499.0,71476.0,0.06736897]
[1773581328344,0.0014,71498.0,71476.0,0.06736897]
[1773581328726,0.20909849,71500.0,71476.0,0.06736897]
[1773581328926,0.06515854,71498.0,71476.0,0.06736897]
[1773581329149,0.06655854,71497.0,71476.0,0.06736897]
[1773581329753,0.07133398,71496.0,71478.0,0.06736897]
[1773581329959,0.00022001,71501.0,71478.0,0.06736897]
[1773581330159,0.0014,71500.0,71478.0,0.06736897]
[1773581330947,0.0014,71499.0,71478.0,0.06736897]
[1773581331815,0.0014,71498.0,71480.0,0.06539153]
[1773581332157,0.0014,71497.0,71480.0,0.06539153]
[1773581332979,0.20929878,71501.0,71480.0,0.06539153]
[1773581333184,0.0014,71496.0,71480.0,0.06539153]
[1773581334099,0.0014,71495.0,71482.0,0.06914604]
[1773581337342,0.0014,71495.0,71483.0,0.0699467]
[1773581337675,0.00022001,71501.0,71483.0,0.0699467]
[1773581337676,0.11132283,71516.0,71484.0,0.06914604]
[1773581337874,0.16729125,71524.0,71486.0,0.483097]
[1773581337875,0.13920389,71523.0,71486.0,0.483097]
[1773581338076,0.06879946,71524.0,71489.0,0.06914604]
[1773581338295,0.0014,71520.0,71491.0,0.16730351]
[1773581338502,0.06989246,71520.0,71492.0,0.06914604]
[1773581338838,0.07009266,71520.0,71492.0,0.06914604]
[1773581339248,0.07009266,71520.0,71494.0,0.06914604]
[1773581341291,0.07009266,71520.0,71495.0,0.06993496]
[1773581341467,0.07009266,71520.0,71496.0,0.0014]
[1773581342035,0.08970404,71518.0,71496.0,0.0014]
[1773581342171,0.08970404,71518.0,71495.0,0.06993496]
[1773581342371,0.08970404,71518.0,71496.0,0.0014]
[1773581342712,0.08990424,71518.0,71495.0,0.06993496]
[1773581342918,0.08990424,71518.0,71496.0,0.0014]
[1773581343276,0.08990424,71518.0,71497.0,0.069933]
[1773581344275,0.09012425,71518.0,71497.0,0.069933]
[1773581345904,0.09012425,71518.0,71497.0,0.071333]
[1773581348113,0.09012425,71518.0,71497.0,0.069933]
[1773581348891,0.08970404,71517.0,71497.0,0.069933]
[1773581349858,0.08990424,71517.0,71497.0,0.069933]
[1773581350557,0.08990424,71517.0,71496.0,0.069933]
[1773581351395,0.08990424,71517.0,71497.0,0.13899182]
[1773581351595,0.08990424,71517.0,71498.0,0.13899182]
[1773581351799,0.08990424,71517.0,71499.0,0.20892286]
[1773581351999,0.08990424,71517.0,71500.0,0.13899182]
[1773581352208,0.08990424,71517.0,71501.0,0.13899182]
[1773581352414,0.08990424,71517.0,71502.0,0.13899182]
[1773581352610,0.08990424,71517.0,71503.0,0.13899182]
[1773581352814,0.08970404,71515.0,71504.0,0.13899182]
[1773581353015,0.08970404,71515.0,71505.0,0.13899182]
[1773581353191,0.08970404,71515.0,71506.0,0.13899182]
[1773581353405,0.08970404,71515.0,71496.0,0.0002]
[1773581353845,0.06849246,71513.0,71489.0,0.0699407]
[1773581354448,0.06849246,71513.0,71489.0,0.07004777]
[1773581354766,0.06869266,71513.0,71489.0,0.07004777]
[1773581356137,0.06991833,71512.0,71489.0,0.07004777]
[1773581356441,0.06849246,71511.0,71489.0,0.07004777]
[1773581356677,0.06849246,71509.0,71489.0,0.07004777]
[1773581359705,0.06849246,71507.0,71489.0,0.07004777]
[1773581360687,0.06849246,71510.0,71489.0,0.07024777]
[1773581360907,0.0014,71506.0,71489.0,0.11519072]
[1773581361343,0.06849246,71510.0,71489.0,0.11519072]
[1773581361553,0.06849246,71508.0,71489.0,0.11519072]
[1773581361951,0.06849246,71508.0,71489.0,0.07024777]
[1773581362352,0.07023468,71506.0,71489.0,0.07024777]
[1773581362867,0.07023468,71504.0,71489.0,0.07024777]
[1773581364451,0.0014,71503.0,71489.0,0.07024777]
[1773581364656,0.0014,71502.0,71489.0,0.07024777]
[1773581366150,0.07023468,71501.0,71489.0,0.07024777]
[1773581367878,0.07023468,71501.0,71489.0,0.00030707]
[1773581368083,0.07023468,71501.0,71482.0,0.06994767]
[1773581368227,0.07023468,71499.0,71482.0,0.06994767]
[1773581370742,0.06993144,71499.0,71482.0,0.06994767]
[1773581370970,0.07023468,71498.0,71482.0,0.06994767]
[1773581371543,0.07023468,71498.0,71480.0,0.06994911]
[1773581371949,0.07023468,71496.0,71480.0,0.06994911]
[1773581372255,0.07023468,71496.0,71476.0,0.06995355]
[1773581372439,0.07023468,71494.0,71476.0,0.06995355]
[1773581373888,0.07023468,71494.0,71474.0,0.03857042]
[1773581374039,0.07023468,71494.0,71476.0,0.06995355]
[1773581375032,0.07023468,71492.0,71476.0,0.07015355]
[1773581377878,0.07023468,71490.0,71476.0,0.07015355]
[1773581378077,0.0014,71489.0,71476.0,0.07015355]
[1773581379038,0.07003643,71501.0,71477.0,0.04590957]
[1773581379389,0.0014,71500.0,71477.0,0.04590957]
[1773581379592,0.0014,71499.0,71477.0,0.04590957]
[1773581380214,0.0001,71492.0,71479.0,0.04576496]
[1773581380416,0.0001,71492.0,71481.0,0.04563424]
[1773581381423,0.0002,71492.0,71481.0,0.04563424]
[1773581382179,0.0003,71492.0,71482.0,0.06994767]
[1773581382383,0.0003,71492.0,71483.0,0.04548999]
[1773581383231,0.0004,71492.0,71483.0,0.04548999]
[1773581383720,0.00010711,71501.0,71483.0,0.04548999]
[1773581383879,0.0001,71492.0,71483.0,0.04548999]
[1773581384080,0.00010711,71501.0,71483.0,0.04548999]
[1773581384299,0.07023468,71531.0,71496.0,0.02239954]
[1773581384501,0.00030097,71523.0,71504.0,0.16728626]
[1773581384709,0.00030097,71523.0,71506.0,0.02239954]
[1773581384888,0.00030097,71523.0,71508.0,0.02239954]
[1773581385955,0.01030097,71523.0,71508.0,0.02239954]
[1773581386368,0.01030097,71523.0,71510.0,0.02280964]
[1773581387411,0.01030097,71523.0,71509.0,0.06992126]
[1773581387740,0.01030097,71523.0,71510.0,0.02266485]
[1773581388236,0.01030097,71523.0,71511.0,0.06991931]
[1773581390078,0.01030097,71523.0,71511.0,0.0923141]
[1773581390280,0.01030097,71523.0,71511.0,0.06991931]
[1773581390478,0.01030097,71523.0,71512.0,0.02226931]
[1773581390678,0.01030097,71523.0,71513.0,0.0014]
[1773581391024,0.01052098,71523.0,71513.0,0.0014]
[1773581392832,0.01052098,71523.0,71514.0,0.06991638]
[1773581393034,0.01052098,71523.0,71514.0,0.06976661]
[1773581394029,0.07054665,71522.0,71497.0,0.02196218]
[1773581394204,0.07054665,71522.0,71497.0,0.03537371]
[1773581394533,0.07054665,71522.0,71499.0,0.02183722]
[1773581395047,0.07054665,71522.0,71500.0,0.06993006]
[1773581395199,0.07054665,71522.0,71500.0,0.09176728]
[1773581396246,0.08054665,71522.0,71501.0,0.0014]
[1773581397094,0.07054665,71520.0,71502.0,0.06992811]
[1773581397299,0.07054665,71520.0,71502.0,0.07132811]
[1773581398104,0.07054665,71520.0,71503.0,0.0014]
[1773581399380,0.07054665,71519.0,71504.0,0.06992615]
[1773581400249,0.07062805,71519.0,71504.0,0.06992615]
[1773581401295,8.14e-05,71519.0,71504.0,0.06992615]
[1773581401517,0.0100814,71519.0,71504.0,0.06992615]
[1773581402127,0.07054665,71518.0,71504.0,0.06992615]
[1773581402310,0.07062805,71518.0,71504.0,0.06992615]
[1773581404409,8.14e-05,71518.0,71504.0,0.06992615]
[1773581405122,0.07062805,71518.0,71505.0,0.0014]
[1773581405644,0.07062805,71518.0,71503.0,0.06992615]
[1773581405645,0.07062805,71518.0,71506.0,0.0014]
[1773581406171,0.07054665,71516.0,71506.0,0.0014]
[1773581406444,0.07062805,71516.0,71498.0,0.06993202]
[1773581406669,0.07062805,71516.0,71504.0,0.0014]
[1773581408172,0.07062805,71516.0,71505.0,0.06992518]
[1773581408778,0.06999603,71516.0,71505.0,0.06992518]
[1773581408929,0.07054665,71515.0,71505.0,0.06992518]
[1773581409474,0.07062805,71515.0,71505.0,0.06992518]
[1773581409636,0.01,71519.0,71505.0,0.06992518]
[1773581409637,0.34624419,71572.0,71505.0,0.06992518]
[1773581409856,0.07078825,71559.0,71522.0,0.16691923]
[1773581410030,0.07054665,71557.0,71524.0,0.04133728]
[1773581410247,0.07054665,71556.0,71526.0,0.04133728]
[1773581410749,0.07054665,71556.0,71529.0,0.11124266]
[1773581411202,0.07054665,71556.0,71529.0,0.16275993]
[1773581411401,0.07054665,71556.0,71532.0,0.11124266]
[1773581411563,0.07054665,71556.0,71533.0,0.25169052]
[1773581411765,0.07054665,71556.0,71534.0,0.13904786]
[1773581411965,0.07054665,71556.0,71535.0,0.13904786]
[1773581412234,0.06987631,71555.0,71536.0,0.20894176]
[1773581412410,0.06987631,71555.0,71534.0,0.0002352]
[1773581412411,0.07054665,71554.0,71534.0,0.0002352]
[1773581412607,0.06987631,71555.0,71534.0,0.0002352]
[1773581412608,0.07054665,71552.0,71534.0,0.0002352]
[1773581414065,0.07054665,71552.0,71527.0,0.06990287]
[1773581414211,0.07054665,71550.0,71522.0,0.18115121]
[1773581414413,0.07054665,71548.0,71523.0,0.0014]
[1773581414611,0.07054665,71546.0,71523.0,0.0014]
[1773581416133,0.07054665,71544.0,71523.0,0.0014]
[1773581416971,0.06988803,71543.0,71524.0,0.0699066]
[1773581417169,0.07054665,71542.0,71524.0,0.0699066]
[1773581417368,0.07054665,71540.0,71524.0,0.0699066]
[1773581418632,0.00170022,71539.0,71524.0,0.0699066]
[1773581419269,0.0014,71538.0,71524.0,0.0699066]
[1773581420684,0.00170022,71539.0,71525.0,0.06757348]
[1773581420887,0.00310022,71539.0,71525.0,0.06757348]
[1773581421093,0.00310022,71539.0,71526.0,0.06990465]
[1773581421646,0.06985801,71574.0,71532.0,0.11124266]
[1773581421781,0.07748983,71571.0,71539.0,0.11120955]
[1773581421980,0.07748983,71569.0,71540.0,0.0014]
[1773581423224,0.07748983,71567.0,71541.0,0.06988999]
[1773581423851,0.07748983,71567.0,71541.0,0.1457299]
[1773581424226,0.07748983,71565.0,71541.0,0.1457299]
[1773581424600,0.07748983,71563.0,71541.0,0.1457299]
[1773581425288,0.14736029,71561.0,71541.0,0.1457299]
[1773581426340,0.06987046,71561.0,71541.0,0.1457299]
[1773581426596,0.07748983,71560.0,71540.0,0.0014]
[1773581426783,0.07748983,71560.0,71540.0,0.07129061]
[1773581426988,0.07748983,71560.0,71540.0,0.0014]
[1773581427372,0.07748983,71558.0,71540.0,0.0014]
[1773581427608,0.07748983,71558.0,71540.0,0.07129047]
[1773581427910,0.07748983,71558.0,71531.0,0.11120955]
[1773581427911,0.07748983,71558.0,71532.0,0.07025495]
[1773581429843,0.06987436,71557.0,71532.0,0.07025495]
[1773581430047,0.07748983,71556.0,71532.0,0.07025495]
[1773581433227,0.07748983,71554.0,71532.0,0.07025495]
[1773581433803,0.0014,71553.0,71532.0,0.07025495]
[1773581434052,0.07748983,71552.0,71532.0,0.07025495]
[1773581434351,0.07748983,71552.0,71532.0,0.1814645]
[1773581435412,0.0014,71551.0,71534.0,0.07583991]
[1773581435618,0.0014,71550.0,71534.0,0.11120955]
[1773581435812,0.0014,71550.0,71535.0,0.07583991]
[1773581436017,0.06987851,71553.0,71535.0,0.07583991]
[1773581436018,0.0014,71549.0,71535.0,0.07583991]
[1773581436231,0.0014,71549.0,71536.0,0.07583991]
[1773581436568,0.0014,71548.0,71536.0,0.07583991]
[1773581436786,0.06987851,71553.0,71536.0,0.07583991]
[1773581436994,0.0014,71552.0,71536.0,0.07583991]
[1773581437171,0.0014,71552.0,71536.0,0.18704946]
[1773581437348,0.06988022,71551.0,71534.0,0.06989642]
[1773581437970,0.06988022,71551.0,71535.0,0.07583991]
[1773581439546,0.06988022,71551.0,71536.0,0.06989487]
[1773581439746,0.0014,71550.0,71537.0,0.07583991]
[1773581440799,0.0014,71549.0,71537.0,0.07583991]
[1773581441181,0.0014,71548.0,71537.0,0.07583991]
[1773581441580,0.06987851,71553.0,71537.0,0.07583991]
[1773581441831,0.0014,71548.0,71539.0,0.07583991]
[1773581442039,0.07748983,71575.0,71544.0,0.16691923]
[1773581442208,0.07748983,71575.0,71538.0,0.06989292]
[1773581442209,0.07748983,71575.0,71551.0,0.11142887]
[1773581442505,0.07748983,71575.0,71552.0,0.07723991]
[1773581442808,0.07748983,71575.0,71552.0,0.0014]
[1773581443679,0.07748983,71575.0,71549.0,0.06988217]
[1773581443680,0.06985776,71574.0,71549.0,0.06988217]
[1773581443887,0.07748983,71573.0,71549.0,0.07128217]
[1773581444085,0.07748983,71573.0,71543.0,0.06988708]
[1773581444739,0.07748983,71573.0,71541.0,0.06988803]
[1773581445223,0.07748983,71568.0,71541.0,0.06988803]
[1773581445422,0.07748983,71566.0,71541.0,0.06988803]
[1773581445930,0.07748983,71564.0,71539.0,0.06989194]
[1773581446973,0.07748983,71564.0,71538.0,0.18272104]
[1773581447393,0.07748983,71564.0,71539.0,0.07583991]
[1773581448164,0.07748983,71562.0,71539.0,0.14573094]
[1773581448318,0.07748983,71560.0,71539.0,0.14573094]
[1773581449373,0.07748983,71560.0,71539.0,0.06989103]
[1773581449581,0.07748983,71560.0,71540.0,0.07583991]
[1773581449820,0.07748983,71560.0,71536.0,0.06989472]
[1773581450017,0.07748983,71560.0,71533.0,0.06989713]
[1773581450140,0.07748983,71558.0,71533.0,0.06989713]
[1773581452034,0.07748983,71558.0,71534.0,0.11142887]
[1773581452232,0.06987436,71557.0,71535.0,0.06989585]
[1773581452431,0.07836813,71556.0,71535.0,0.06989585]
[1773581452733,0.07836813,71554.0,71535.0,0.06989585]
[1773581452933,0.07836813,71554.0,71534.0,0.06989593]
[1773581453132,0.07836813,71554.0,71534.0,0.14637259]
[1773581454010,0.07836813,71554.0,71535.0,0.11142887]
[1773581454909,0.07836813,71552.0,71536.0,0.06989487]
[1773581456833,0.06988022,71551.0,71536.0,0.06989487]
[1773581457034,0.14824835,71551.0,71536.0,0.06989487]
[1773581458150,0.07836813,71550.0,71535.0,0.06989528]
[1773581458980,0.06988217,71549.0,71535.0,0.06989528]
[1773581459178,0.0014,71548.0,71535.0,0.06989528]
[1773581459580,0.0014,71547.0,71536.0,0.07647666]
[1773581460606,0.06988114,71551.0,71536.0,0.07647666]
[1773581460734,0.0014,71546.0,71536.0,0.07647666]
[1773581461153,0.06988122,71550.0,71537.0,0.0698939]
[1773581461335,0.06988122,71550.0,71537.0,0.14637056]
[1773581461559,0.0014,71549.0,71537.0,0.14637056]
[1773581461755,0.06988122,71550.0,71537.0,0.14637056]
[1773581461954,0.0014,71549.0,71537.0,0.14637056]
[1773581462377,0.0014,71548.0,71537.0,0.14637056]
[1773581462749,0.06987872,71553.0,71538.0,0.07647666]
[1773581462953,0.0014,71552.0,71538.0,0.07647666]
[1773581463458,0.0014,71552.0,71539.0,0.06989194]
[1773581464795,0.07127967,71552.0,71539.0,0.06989194]
[1773581467907,0.07127967,71552.0,71538.0,0.07009194]
[1773581468459,0.06987967,71552.0,71538.0,0.07009194]
[1773581468689,0.0014,71551.0,71538.0,0.07009194]
[1773581469183,0.0014,71550.0,71538.0,0.07009194]
[1773581469608,0.0014,71549.0,71538.0,0.07009194]
[1773581469973,0.06987967,71552.0,71538.0,0.07009194]
[1773581470174,0.0014,71548.0,71538.0,0.07009194]
[1773581470382,0.0014,71547.0,71538.0,0.1465686]
[1773581470592,0.0014,71546.0,71538.0,0.1465686]
[1773581471657,0.0014,71546.0,71538.0,0.07009194]
[1773581471857,0.0014,71546.0,71537.0,0.06989292]
[1773581471858,0.0014,71546.0,71537.0,0.03998486]
[1773581472065,0.0014,71546.0,71533.0,0.18810553]
[1773581472066,0.0014,71546.0,71534.0,0.06989683]
[1773581472369,0.0014,71546.0,71534.0,0.25780236]
[1773581473261,0.0014,71546.0,71535.0,0.11142887]
[1773581474030,0.0014,71546.0,71538.0,0.0002]
[1773581474238,0.0014,71546.0,71538.0,0.07009282]
[1773581474412,0.0014,71545.0,71538.0,0.14656948]
[1773581474670,0.0014,71545.0,71538.0,0.07009282]
[1773581477897,0.0698808,71551.0,71539.0,0.07647666]
[1773581478101,0.0014,71550.0,71539.0,0.07647666]
[1773581478317,0.0014,71549.0,71539.0,0.07647666]
[1773581478633,0.0014,71548.0,71538.0,0.18152169]
[1773581478832,0.0698808,71551.0,71538.0,0.18152169]
[1773581478833,0.0698808,71551.0,71538.0,0.11162887]
[1773581479038,0.07976813,71550.0,71538.0,0.0002]
[1773581479243,0.09637297,71547.0,71533.0,0.0002]
[1773581479447,0.07836813,71546.0,71533.0,0.07009779]
[1773581479665,0.07836813,71546.0,71533.0,0.0002]
[1773581481534,0.07836813,71544.0,71533.0,0.0002]
[1773581481736,0.0014,71543.0,71533.0,0.0002]
[1773581481891,0.07120793,71542.0,71532.0,0.00055715]
[1773581483070,0.07120793,71542.0,71530.0,0.0002]
[1773581483254,0.07120793,71542.0,71524.0,0.0002]
[1773581483255,0.0715648,71542.0,71524.0,0.0002]
[1773581483457,0.07120793,71540.0,71524.0,0.0002]
[1773581483952,0.07120793,71540.0,71524.0,0.0701066]
[1773581484169,0.07120793,71540.0,71532.0,0.0002]
[1773581485350,0.06989194,71539.0,71532.0,0.0002]
[1773581486862,0.14109987,71539.0,71532.0,0.0002]
[1773581487406,0.0014,71538.0,71532.0,0.0002]
[1773581487611,0.0014,71538.0,71524.0,0.0002]
[1773581488062,0.07260793,71538.0,71524.0,0.0002]
[1773581488842,0.0014,71537.0,71524.0,0.0002]
[1773581490518,0.0014,71536.0,71524.0,0.0002]
[1773581491405,0.07120793,71535.0,71524.0,0.0002]
[1773581491997,0.0014,71536.0,71524.0,0.0002]
[1773581492364,0.0014,71535.0,71524.0,0.0002]
[1773581492698,0.0014,71534.0,71524.0,0.0002]
[1773581493778,0.0014,71534.0,71517.0,0.0002]
[1773581493779,0.07120793,71533.0,71517.0,0.0002]
[1773581494161,0.07120793,71533.0,71516.0,0.0002]
[1773581494353,0.07120793,71530.0,71516.0,0.0002]
[1773581496832,0.07120793,71528.0,71516.0,0.0002]
[1773581497607,0.07120793,71528.0,71515.0,0.0002401]
[1773581497833,0.07120793,71528.0,71501.0,0.0721471]
[1773581498036,0.07120793,71528.0,71502.0,0.06992794]
[1773581498855,0.06990367,71527.0,71502.0,0.06992794]
[1773581499058,0.07260793,71526.0,71502.0,0.06992794]
[1773581500857,0.06990562,71525.0,71502.0,0.06992794]
[1773581501190,0.07120793,71522.0,71501.0,0.0002401]
[1773581501564,0.07120793,71522.0,71501.0,0.0004401]
[1773581502985,0.07120793,71520.0,71501.0,0.0004401]
[1773581503187,0.06990953,71521.0,71501.0,0.0004401]
[1773581503188,0.07120793,71518.0,71501.0,0.0004401]
[1773581504087,0.07120793,71518.0,71501.0,0.00053498]
[1773581504291,0.07120793,71518.0,71498.0,0.01124]
[1773581504292,0.07220793,71518.0,71498.0,0.01124]
[1773581504551,0.07220793,71518.0,71498.0,0.01134717]
[1773581504698,0.07120793,71518.0,71498.0,0.01134717]
[1773581505111,0.06991344,71517.0,71498.0,0.01134717]
[1773581505311,0.07120793,71516.0,71498.0,0.01134717]
[1773581506111,0.07120793,71516.0,71490.0,0.0002175]
[1773581506317,0.07120793,71514.0,71490.0,0.07026431]
[1773581506516,0.06991344,71517.0,71490.0,0.00032461]
[1773581506517,0.0014,71513.0,71490.0,0.00032461]
[1773581506742,0.07120793,71512.0,71490.0,0.00032461]
[1773581506947,0.07120793,71512.0,71490.0,0.00027461]
[1773581507149,0.06991931,71511.0,71490.0,0.00027461]
[1773581507352,0.07120793,71510.0,71490.0,0.00027461]
[1773581509327,0.14252919,71509.0,71491.0,0.071907]
[1773581509534,0.0014,71508.0,71491.0,0.071907]
[1773581510176,0.07120793,71508.0,71491.0,0.071907]
[1773581510382,0.07260793,71507.0,71491.0,0.071907]
[1773581511429,0.07260793,71507.0,71490.0,0.00047461]
[1773581511430,0.0699242,71506.0,71490.0,0.00047461]
[1773581512139,0.0014,71505.0,71491.0,0.07332488]
[1773581513691,0.06992615,71504.0,71490.0,0.07041403]
[1773581514094,0.06992615,71504.0,71490.0,0.14373891]
[1773581517461,0.06992615,71504.0,71490.0,0.07379949]
[1773581517802,0.06992615,71504.0,71488.0,0.0002401]
[1773581517803,0.06828005,71503.0,71488.0,0.0002401]
[1773581518097,0.06838704,71503.0,71488.0,0.0002401]
[1773581518447,0.06838704,71503.0,71490.0,0.0002]
[1773581518652,0.06828005,71501.0,71490.0,0.0002]
[1773581519468,0.06828005,71501.0,71484.0,1e-08]
[1773581519713,0.06828005,71501.0,71473.0,0.0002]
[1773581520819,0.06828005,71499.0,71475.0,0.0002]
[1773581521017,0.06828005,71497.0,71475.0,0.0002]
[1773581521518,0.06828005,71497.0,71478.0,0.0002951]
[1773581521739,0.06828005,71497.0,71473.0,0.0002]
[1773581523109,0.06828005,71495.0,71473.0,0.0002]
[1773581523718,0.06828005,71493.0,71473.0,0.0002]
[1773581524286,0.06828005,71491.0,71473.0,0.0002]
[1773581525061,0.0014,71490.0,71473.0,0.0002]
[1773581525192,0.06994083,71489.0,71473.0,0.0002]
[1773581525390,0.06828005,71488.0,71473.0,0.0002]
[1773581526500,0.0014,71487.0,71473.0,0.0002]
[1773581526717,0.06828005,71488.0,71473.0,0.0002]
[1773581527044,0.0014,71486.0,71473.0,0.0002]
[1773581527634,0.06994474,71485.0,71473.0,0.0002]
[1773581528233,0.06994083,71490.0,71473.0,0.07015628]
[1773581528569,0.0014,71489.0,71474.0,0.07332488]
[1773581528952,0.06994083,71490.0,71474.0,0.07332488]
[1773581529149,0.0014,71489.0,71474.0,0.07332488]
[1773581530097,0.0699418,71488.0,71474.0,0.14328023]
[1773581530697,0.0699418,71488.0,71473.0,0.0002]
[1773581530901,0.13822185,71488.0,71473.0,0.0002]
[1773581531314,0.13822185,71488.0,71473.0,0.07015635]
[1773581531525,0.0699418,71488.0,71473.0,0.07015635]
[1773581531950,0.0014,71487.0,71474.0,0.07332488]
[1773581532156,0.0014,71487.0,71473.0,0.07015635]
[1773581532157,0.07134289,71487.0,71476.0,0.07332488]
[1773581532375,0.06994289,71487.0,71476.0,0.07332488]
[1773581532587,0.0014,71486.0,71476.0,0.07332488]
[1773581533042,0.0014,71485.0,71476.0,0.07332488]
[1773581533461,0.06994289,71487.0,71476.0,0.07332488]
[1773581533672,0.0014,71484.0,71476.0,0.07332488]
[1773581533883,0.0014,71483.0,71476.0,0.07332488]
[1773581534459,0.07134716,71483.0,71473.0,0.0002]
[1773581534662,0.0014,71483.0,71473.0,0.0002]
[1773581535481,0.0014,71483.0,71473.0,0.07015633]
[1773581537650,0.0014,71483.0,71470.0,0.03153699]
[1773581538388,0.0014,71483.0,71471.0,0.06995648]
[1773581538593,0.0014,71483.0,71473.0,0.0002]
[1773581538792,0.0014,71483.0,71473.0,0.04694502]
[1773581539516,0.0699434,71487.0,71473.0,0.04694502]
[1773581539690,0.06994474,71485.0,71473.0,0.11690124]
[1773581540901,0.07143113,71499.0,71475.0,0.04624438]
[1773581541096,0.06993424,71496.0,71475.0,0.04624438]
[1773581541340,0.07015542,71495.0,71475.0,0.04624438]
[1773581541723,0.06489801,71494.0,71476.0,0.06995355]
[1773581542104,0.06629801,71493.0,71476.0,0.06995355]
[1773581542948,0.06629801,71493.0,71474.0,0.07135355]
[1773581542949,0.06629801,71493.0,71474.0,0.06995355]
[1773581543755,0.06993789,71492.0,71474.0,0.06995355]
[1773581543975,0.06489801,71491.0,71474.0,0.06995355]
[1773581546376,0.10856576,71489.0,71474.0,0.06995355]
[1773581548405,0.0699418,71488.0,71474.0,0.06995355]
[1773581548609,0.0014,71487.0,71474.0,0.06995355]
[1773581550726,0.0014,71486.0,71474.0,0.06995355]
[1773581551307,0.0713418,71488.0,71474.0,0.06995355]
[1773581551495,0.01,71487.0,71474.0,0.06995355]
[1773581552361,0.01022001,71487.0,71474.0,0.06995355]
[1773581552547,0.01,71491.0,71474.0,0.06995355]
[1773581554273,0.07993887,71491.0,71474.0,0.06995355]
[1773581554866,0.01,71491.0,71474.0,0.06995355]
[1773581555247,0.07993905,71491.0,71474.0,0.06995355]
[1773581555971,0.01,71491.0,71474.0,0.06995355]
[1773581557164,0.079939,71491.0,71474.0,0.06995355]
[1773581557449,0.01,71491.0,71474.0,0.06995355]
[1773581557612,0.07993888,71491.0,71474.0,0.06995355]
[1773581557810,0.01,71491.0,71474.0,0.06995355]
[1773581560779,0.01,71491.0,71474.0,0.07015355]
[1773581560940,0.01022001,71491.0,71474.0,0.07015355]
[1773581565728,0.0988853,71490.0,71474.0,0.07015355]
[1773581567646,0.1088853,71490.0,71474.0,0.07015355]
[1773581568417,0.09921863,71488.0,71474.0,0.07015355]
[1773581570427,0.06994278,71487.0,71473.0,0.0002]
[1773581570656,0.09921863,71486.0,71474.0,0.06995355]
[1773581572946,0.06994114,71489.0,71474.0,0.06995355]
[1773581573122,0.0014,71488.0,71475.0,0.0014]
[1773581573321,0.09955197,71487.0,71475.0,0.0014]
[1773581577482,0.09955197,71487.0,71476.0,0.06995355]
[1773581579776,0.10955197,71487.0,71476.0,0.06995355]
[1773581583734,0.01,71490.0,71476.0,0.06995355]
[1773581584150,0.00022001,71495.0,71476.0,0.06995355]
[1773581584917,0.1006903,71492.0,71476.0,0.06995355]
[1773581585112,0.1006903,71492.0,71477.0,0.0014]
[1773581585519,0.1006903,71492.0,71476.0,0.06995355]
[1773581585698,0.00022001,71495.0,71478.0,0.0014]
[1773581586098,0.110865,71493.0,71479.0,0.06995061]
[1773581586508,0.00022001,71490.0,71479.0,0.06995061]
[1773581586711,0.00022001,71490.0,71480.0,0.0014]
[1773581587154,0.00022001,71490.0,71479.0,0.06995061]
[1773581587364,0.00022001,71490.0,71481.0,0.0014]